bitfinex/quotes_BTCUSD_20241120
["timestamp","ask_amount","ask_price","bid_price","bid_amount"]
[1732137710965,0.22241112,94077.0,94032.0,0.116981]
[1732137710966,0.10711512,94077.0,94058.0,0.106316]
[1732137711196,0.15061453,94076.0,94037.0,0.01]
[1732137711418,0.212596,94075.0,94061.0,0.001]
[1732137711592,0.10711512,94074.0,94061.0,0.001]
[1732137711857,0.106311,94064.0,94039.0,0.233944]
[1732137712064,0.11774622,94063.0,94050.0,0.106325]
[1732137712276,0.11774622,94063.0,94035.0,0.1]
[1732137712277,0.10711512,94063.0,94060.0,0.106314]
[1732137712493,0.106316,94059.0,94058.0,0.001]
[1732137712733,0.10711512,94059.0,94058.0,0.001]
[1732137713193,0.21343112,94059.0,94058.0,0.001]
[1732137713400,0.106317,94058.0,94028.0,0.116985]
[1732137713608,0.10711512,94057.0,94056.0,0.106319]
[1732137713819,0.10711512,94057.0,94053.0,0.212644]
[1732137714033,0.10711512,94057.0,94056.0,0.106319]
[1732137714222,0.009,94064.0,94039.0,0.001]
[1732137714434,0.10711512,94063.0,94055.0,0.10632]
[1732137714587,0.10711512,94063.0,94036.0,0.023]
[1732137714785,0.10711512,94063.0,94059.0,0.106315]
[1732137715609,0.10711512,94063.0,94035.0,0.023]
[1732137715809,0.10711512,94063.0,94038.0,0.233946]
[1732137716012,0.10711512,94063.0,94053.0,0.116954]
[1732137716302,0.10711512,94063.0,94058.0,0.106316]
[1732137716502,0.10711512,94063.0,94037.0,0.1]
[1732137716503,0.10711512,94063.0,94040.0,0.1]
[1732137716680,0.10711512,94063.0,94062.0,0.106312]
[1732137716912,0.10711512,94063.0,94041.0,0.11697]
[1732137717116,0.10711512,94063.0,94060.0,0.106315]
[1732137717656,0.10711512,94063.0,94055.0,0.001]
[1732137717885,0.10711512,94063.0,94020.0,0.002]
[1732137717886,0.10711512,94063.0,94031.0,0.01]
[1732137718096,0.10711512,94063.0,94062.0,0.106312]
[1732137718526,0.01,94084.0,94045.0,0.023]
[1732137718734,0.01,94084.0,94044.0,0.01]
[1732137718735,0.10711512,94083.0,94054.0,0.01]
[1732137718954,0.10711512,94084.0,94069.0,0.1]
[1732137719159,0.10711512,94084.0,94083.0,0.116918]
[1732137719515,0.212524,94107.0,94093.0,0.106277]
[1732137719516,0.106265,94104.0,94093.0,0.106277]
[1732137719692,0.212504,94116.0,94079.0,0.023]
[1732137719906,0.212504,94116.0,94072.0,0.1]
[1732137719907,0.10711512,94115.0,94081.0,0.023]
[1732137720110,0.106263,94106.0,94100.0,0.106269]
[1732137720318,0.106267,94103.0,94097.0,0.106272]
[1732137720525,0.10711512,94102.0,94099.0,0.10627]
[1732137720729,0.10711512,94102.0,94097.0,0.106272]
[1732137721190,0.10711512,94102.0,94092.0,0.116906]
[1732137721382,0.106268,94101.0,94096.0,0.106274]
[1732137721597,0.212533,94103.0,94097.0,0.106273]
[1732137721598,0.10711512,94100.0,94097.0,0.106273]
[1732137721835,0.10711512,94100.0,94077.0,0.023]
[1732137722036,0.17093263,94124.0,94107.0,0.106261]
[1732137722241,0.10711512,94123.0,94090.0,0.28456052]
[1732137722448,0.10711512,94123.0,94106.0,0.106262]
[1732137722649,0.106254,94114.0,94108.0,0.10626]
[1732137722875,0.10711512,94113.0,94099.0,0.001]
[1732137723090,0.10711512,94113.0,94112.0,0.106256]
[1732137723778,0.09574563,94132.0,94104.0,0.116891]
[1732137723779,0.001713,94132.0,94126.0,0.106239]
[1732137723964,0.001713,94132.0,94131.0,0.106234]
[1732137725317,0.10882812,94132.0,94131.0,0.106234]
[1732137725523,0.010713,94132.0,94131.0,0.107234]
[1732137725954,0.010713,94132.0,94131.0,0.129234]
[1732137725955,0.001713,94132.0,94131.0,0.129234]
[1732137726172,0.001713,94132.0,94131.0,0.34634912]
[1732137726372,0.001713,94132.0,94131.0,0.240234]
[1732137726584,0.001713,94132.0,94131.0,0.230234]
[1732137726762,0.001713,94132.0,94131.0,0.34734912]
[1732137727167,0.001713,94132.0,94131.0,0.35734912]
[1732137727764,0.001713,94132.0,94131.0,0.35634912]
[1732137727963,0.10619,94170.0,94164.0,0.106197]
[1732137728169,0.0017106,94174.0,94146.0,0.0822]
[1732137728336,0.0017106,94174.0,94173.0,0.106187]
[1732137728531,0.0017106,94174.0,94152.0,0.123]
[1732137728532,0.10882572,94174.0,94152.0,0.123]
[1732137728814,0.10711512,94173.0,94161.0,0.1062]
[1732137728924,0.106192,94169.0,94158.0,0.116824]
[1732137729133,0.10711512,94168.0,94161.0,0.1062]
[1732137729332,0.10711512,94168.0,94162.0,0.106199]
[1732137729536,0.10711512,94168.0,94154.0,0.116829]
[1732137729744,0.10711512,94168.0,94162.0,0.106199]
[1732137729943,0.0107106,94174.0,94173.0,0.106187]
[1732137730160,0.11782572,94174.0,94173.0,0.106187]
[1732137730460,0.0107106,94174.0,94173.0,0.106187]
[1732137731006,0.0107106,94174.0,94173.0,0.129187]
[1732137731209,0.0017106,94174.0,94173.0,0.229187]
[1732137732201,0.0017106,94174.0,94173.0,0.230187]
[1732137732859,0.0017106,94174.0,94173.0,0.229187]
[1732137733441,0.0017106,94174.0,94173.0,0.230187]
[1732137735099,0.0017138,94187.0,94173.0,0.230187]
[1732137735100,0.0017138,94187.0,94186.0,0.023]
[1732137735256,0.0017138,94187.0,94186.0,0.239172]
[1732137735462,0.0017138,94187.0,94186.0,0.35828712]
[1732137735881,0.0017106,94194.0,94186.0,0.35828712]
[1732137735882,0.01278209,94192.0,94191.0,0.128167]
[1732137736088,0.01278209,94192.0,94191.0,0.35828212]
[1732137736291,0.0002,94219.0,94198.0,0.251159]
[1732137736496,0.0002,94219.0,94198.0,0.64283464]
[1732137736702,0.0002,94219.0,94207.0,0.249149]
[1732137736903,0.0002,94219.0,94207.0,0.35626412]
[1732137737537,0.0002,94219.0,94207.0,0.44006412]
[1732137737707,0.0002,94219.0,94207.0,0.322949]
[1732137737909,0.106144,94212.0,94205.0,0.10615]
[1732137738150,0.10614,94215.0,94207.0,0.106149]
[1732137738349,0.1078582,94208.0,94186.0,0.001]
[1732137738652,0.10711512,94207.0,94187.0,0.116788]
[1732137738884,0.0017092,94208.0,94207.0,0.106149]
[1732137739114,0.0017092,94208.0,94177.0,0.28456052]
[1732137739115,0.106149,94207.0,94200.0,0.106156]
[1732137739284,0.10711512,94206.0,94190.0,0.106168]
[1732137739495,0.1078572,94208.0,94184.0,0.01]
[1732137739496,0.0017092,94208.0,94184.0,0.01]
[1732137739707,0.0017092,94208.0,94207.0,0.106149]
[1732137740267,0.0017092,94208.0,94203.0,0.116767]
[1732137740583,0.21326412,94207.0,94201.0,0.106155]
[1732137740789,0.01233502,94208.0,94207.0,0.106149]
[1732137740790,0.0017092,94208.0,94207.0,0.106149]
[1732137741089,0.10882432,94208.0,94186.0,0.023]
[1732137741311,0.10711512,94207.0,94187.0,0.116788]
[1732137741512,0.0017092,94208.0,94188.0,0.00106165]
[1732137741716,0.0017092,94208.0,94207.0,0.106149]
[1732137742038,0.0017092,94208.0,94205.0,0.116765]
[1732137742237,0.009,94206.0,94204.0,0.106152]
[1732137742453,0.10711512,94205.0,94190.0,0.001]
[1732137742584,0.212317,94199.0,94169.0,0.1]
[1732137742790,0.106162,94196.0,94188.0,0.10617]
[1732137743195,0.106183,94177.0,94169.0,0.10619]
[1732137743394,0.0825,94191.0,94147.0,0.077]
[1732137743395,0.10711512,94176.0,94153.0,0.116831]
[1732137743611,0.10711512,94176.0,94172.0,0.212374]
[1732137743809,0.0833,94207.0,94166.0,0.01]
[1732137743950,0.10711512,94206.0,94163.0,0.116818]
[1732137744154,0.106166,94192.0,94185.0,0.212346]
[1732137744389,0.212336,94190.0,94149.0,0.0938]
[1732137744593,0.10711512,94186.0,94141.0,0.106223]
[1732137744932,0.01071151,94185.0,94145.0,0.106219]
[1732137745132,0.10711512,94184.0,94145.0,0.106219]
[1732137745339,0.261252,94183.0,94156.0,0.106206]
[1732137745509,0.17260788,94182.0,94156.0,0.106206]
[1732137745688,0.17260788,94182.0,94136.0,0.116229]
[1732137745866,0.17260788,94182.0,94153.0,0.106209]
[1732137746069,0.36786052,94178.0,94147.0,0.106215]
[1732137746272,0.36786052,94178.0,94131.0,0.01]
[1732137746273,0.10711512,94167.0,94120.0,0.01]
[1732137746503,0.01,94146.0,94133.0,0.106231]
[1732137746707,0.01,94144.0,94126.0,0.106239]
[1732137746922,0.01,94144.0,94134.0,0.10623]
[1732137747078,0.10711512,94145.0,94144.0,0.10622]
[1732137747281,0.01,94151.0,94150.0,0.106213]
[1732137747730,0.02,94164.0,94161.0,0.1062]
[1732137747932,0.01,94161.0,94156.0,0.106206]
[1732137748155,0.10711512,94160.0,94159.0,0.106203]
[1732137748354,0.01,94188.0,94133.0,0.023]
[1732137748355,0.01,94173.0,94165.0,0.106195]
[1732137748563,0.01,94169.0,94160.0,0.106202]
[1732137748705,0.10711512,94168.0,94167.0,0.106194]
[1732137749513,0.10711512,94168.0,94083.0,0.05302476]
[1732137749514,0.01,94184.0,94153.0,0.10621]
[1732137749744,0.0833,94199.0,94192.0,0.106166]
[1732137749745,0.01,94193.0,94192.0,0.106166]
[1732137750085,0.01,94193.0,94188.0,0.10617]
[1732137750086,0.11711512,94193.0,94188.0,0.106169]
[1732137750349,0.01,94200.0,94198.0,0.106159]
[1732137750588,0.01,94205.0,94161.0,0.28456052]
[1732137750589,0.01,94202.0,94197.0,0.10616]
[1732137750779,0.01,94201.0,94181.0,0.106178]
[1732137750915,0.01,94201.0,94200.0,0.106157]
[1732137751115,0.116156,94201.0,94182.0,0.123]
[1732137751319,0.0017092,94208.0,94184.0,0.023]
[1732137751592,0.0017092,94208.0,94205.0,0.10615]
[1732137751837,0.0017092,94208.0,94207.0,0.106149]
[1732137753234,0.0107092,94208.0,94207.0,0.107149]
[1732137753643,0.0017092,94208.0,94207.0,0.106149]
[1732137754997,0.0017092,94208.0,94205.0,0.10615]
[1732137754998,0.01,94205.0,94192.0,0.206165]
[1732137755202,0.01,94205.0,94195.0,0.106162]
[1732137755203,0.106155,94202.0,94195.0,0.106162]
[1732137755351,0.0017092,94208.0,94207.0,0.106149]
[1732137756024,0.0017092,94208.0,94207.0,0.206149]
[1732137756181,0.0017092,94208.0,94207.0,0.20721041]
[1732137756388,0.0017092,94208.0,94207.0,0.23021041]
[1732137756649,0.0017092,94208.0,94207.0,0.229149]
[1732137757710,0.0017092,94208.0,94207.0,0.33626412]
[1732137758273,0.0017092,94208.0,94207.0,0.229149]
[1732137758702,0.0017092,94208.0,94207.0,0.33626412]
[1732137758925,0.0017092,94208.0,94207.0,0.33826412]
[1732137759984,0.09279292,94210.0,94209.0,0.231146]
[1732137760203,0.09279292,94210.0,94209.0,0.33826112]
[1732137761374,0.09279292,94210.0,94209.0,0.33626112]
[1732137762364,0.0002,94219.0,94209.0,0.33626112]
[1732137762365,6e-07,94219.0,94216.0,0.108139]
[1732137762571,1e-06,94221.0,94220.0,0.108134]
[1732137762776,1e-06,94221.0,94220.0,0.33931006]
[1732137762943,6e-07,94227.0,94220.0,0.33824912]
[1732137763185,6e-07,94227.0,94226.0,0.208127]
[1732137763505,4e-07,94232.0,94231.0,0.108122]
[1732137763740,4e-07,94232.0,94231.0,0.62279764]
[1732137763939,0.0002,94259.0,94258.0,0.229091]
[1732137766067,0.0002,94259.0,94258.0,0.33620612]
[1732137766904,0.0002,94259.0,94258.0,0.33820612]
[1732137767510,0.0002,94259.0,94258.0,0.206091]
[1732137767706,0.0002,94259.0,94242.0,0.002]
[1732137767707,0.0002,94259.0,94252.0,0.106097]
[1732137767953,0.0002,94259.0,94223.0,0.0755]
[1732137767954,0.0002,94259.0,94220.0,0.10711512]
[1732137768154,0.0002,94259.0,94247.0,0.106103]
[1732137768155,0.212188,94256.0,94247.0,0.106103]
[1732137768364,0.0002,94259.0,94224.0,0.10711512]
[1732137768365,0.0002,94259.0,94255.0,0.106094]
[1732137768562,0.0002,94259.0,94256.0,0.106093]
[1732137768739,0.0019118,94259.0,94253.0,0.106096]
[1732137768940,0.0019118,94259.0,94256.0,0.106093]
[1732137769142,0.0019118,94259.0,94254.0,0.21219]
[1732137769467,0.0019118,94259.0,94240.0,0.1]
[1732137769692,0.0019118,94259.0,94257.0,0.106092]
[1732137769805,0.0019118,94259.0,94253.0,0.106097]
[1732137770005,0.0019118,94259.0,94256.0,0.106093]
[1732137770611,0.0019118,94259.0,94258.0,0.106091]
[1732137771051,0.0019118,94259.0,94258.0,0.206091]
[1732137771180,0.0019118,94259.0,94258.0,0.023]
[1732137771383,0.0019118,94259.0,94257.0,0.1]
[1732137772152,0.106095,94256.0,94250.0,0.1061]
[1732137772347,0.01,94242.0,94193.0,0.108165]
[1732137772544,0.01,94233.0,94203.0,0.04400252]
[1732137772713,0.01,94233.0,94192.0,0.0772]
[1732137772714,0.212242,94232.0,94204.0,0.10711512]
[1732137772890,0.01,94233.0,94204.0,0.10711512]
[1732137772891,0.01,94233.0,94225.0,0.106128]
[1732137773110,0.01,94236.0,94233.0,0.106119]
[1732137773279,0.076,94241.0,94240.0,0.106112]
[1732137773480,0.076,94241.0,94219.0,0.106134]
[1732137773481,0.106098,94253.0,94247.0,0.106103]
[1732137773680,0.076,94256.0,94225.0,0.106128]
[1732137773681,0.01,94237.0,94225.0,0.106128]
[1732137773934,0.212203,94250.0,94206.0,0.01178266]
[1732137773935,0.01,94236.0,94207.0,0.00106124]
[1732137774145,0.01,94236.0,94198.0,0.28456052]
[1732137774146,0.01,94236.0,94235.0,0.106117]
[1732137774798,0.01,94242.0,94235.0,0.106117]
[1732137775000,0.01,94238.0,94236.0,0.106115]
[1732137775226,0.01,94238.0,94234.0,0.11673]
[1732137775428,0.01,94238.0,94215.0,0.1]
[1732137775429,0.21223,94237.0,94215.0,0.1]
[1732137775650,0.106129,94225.0,94218.0,0.106136]
[1732137775854,0.106129,94225.0,94198.0,0.0424227]
[1732137775855,0.01,94233.0,94199.0,0.10711512]
[1732137776092,0.31934612,94237.0,94218.0,0.106136]
[1732137776093,0.01,94225.0,94218.0,0.106136]
[1732137776239,0.01,94225.0,94200.0,0.12748351]
[1732137776438,0.01,94225.0,94218.0,0.106136]
[1732137776681,0.10711512,94224.0,94184.0,0.01]
[1732137776881,0.288266,94221.0,94186.0,0.00106141]
[1732137777114,0.288266,94221.0,94210.0,0.106145]
[1732137777115,0.01,94216.0,94210.0,0.106145]
[1732137777251,0.01,94216.0,94215.0,0.10614]
[1732137777455,0.01,94216.0,94211.0,0.116759]
[1732137777651,0.01,94216.0,94187.0,0.22390312]
[1732137777652,0.01,94216.0,94187.0,0.10711512]
[1732137777841,0.01,94216.0,94209.0,0.106146]
[1732137778038,0.01,94216.0,94204.0,0.116767]
[1732137778245,0.076,94221.0,94194.0,0.106163]
[1732137778246,0.01,94203.0,94194.0,0.106163]
[1732137778450,0.01,94203.0,94175.0,0.10711512]
[1732137778672,0.04933032,94203.0,94175.0,0.10711512]
[1732137778885,0.01,94203.0,94197.0,0.106159]
[1732137779103,0.01,94203.0,94199.0,0.106157]
[1732137779342,0.01,94211.0,94175.0,0.10711512]
[1732137779548,0.01,94211.0,94172.0,0.01]
[1732137779549,0.01,94203.0,94201.0,0.106155]
[1732137779702,0.01,94203.0,94181.0,0.023]
[1732137779905,0.01,94211.0,94185.0,0.1]
[1732137780107,0.01,94211.0,94183.0,0.1]
[1732137780108,0.01,94211.0,94207.0,0.106148]
[1732137780333,0.212263,94223.0,94207.0,0.106148]
[1732137780334,0.01,94229.0,94220.0,0.106134]
[1732137780549,0.2149,94232.0,94222.0,0.106131]
[1732137780550,0.01,94224.0,94222.0,0.106131]
[1732137780840,0.01,94237.0,94235.0,0.106116]
[1732137781025,0.0826,94238.0,94235.0,0.106116]
[1732137781212,0.01,94247.0,94234.0,0.11673]
[1732137781415,0.01,94234.0,94221.0,0.0008559]
[1732137781615,0.01,94226.0,94225.0,0.106128]
[1732137782526,0.01,94229.0,94228.0,0.106124]
[1732137782759,0.01,94229.0,94221.0,0.1176019]
[1732137782978,0.01,94226.0,94225.0,0.106128]
[1732137784567,0.01,94238.0,94237.0,0.106115]
[1732137785021,0.106121,94232.0,94221.0,0.0008559]
[1732137785258,0.198832,94222.0,94221.0,0.0008559]
[1732137785470,0.30594712,94222.0,94221.0,0.0008559]
[1732137786169,0.19981512,94222.0,94221.0,0.0008559]
[1732137786342,0.18981512,94222.0,94221.0,0.0008559]
[1732137786547,0.30594712,94222.0,94221.0,0.0008559]
[1732137786747,0.19981512,94222.0,94221.0,0.0008559]
[1732137786942,0.30594712,94222.0,94221.0,0.0008559]
[1732137787768,0.0827,94222.0,94221.0,0.0008559]
[1732137787934,0.01,94222.0,94221.0,0.0008559]
[1732137788135,0.005,94222.0,94221.0,0.0008559]
[1732137788332,0.005,94228.0,94225.0,0.106127]
[1732137788563,0.005,94222.0,94221.0,0.0008559]
[1732137788820,0.21824712,94222.0,94221.0,0.0008559]
[1732137789134,0.0493,94231.0,94221.0,0.0008559]
[1732137789385,0.005,94232.0,94221.0,0.0008559]
[1732137789386,0.005,94232.0,94231.0,0.106122]
[1732137789584,0.005,94242.0,94236.0,0.106116]
[1732137789787,0.005,94246.0,94236.0,0.106116]
[1732137789990,0.005,94246.0,94221.0,0.0008559]
[1732137789991,0.005,94246.0,94242.0,0.106109]
[1732137790188,0.0788,94252.0,94242.0,0.106109]
[1732137790189,0.005,94243.0,94242.0,0.106109]
[1732137790598,0.005,94243.0,94222.0,0.023]
[1732137790599,0.10711512,94251.0,94250.0,0.1061]
[1732137790800,0.10711512,94251.0,94244.0,0.106106]
[1732137790801,0.11211512,94251.0,94232.0,0.00106105]
[1732137791031,0.11211512,94251.0,94224.0,0.1]
[1732137791032,0.005,94246.0,94245.0,0.106106]
[1732137791666,0.10711512,94251.0,94250.0,0.1061]
[1732137791843,0.11211512,94251.0,94250.0,0.1061]
[1732137792406,0.0117088,94269.0,94248.0,0.106102]
[1732137792407,0.0069118,94259.0,94258.0,0.106091]
[1732137792639,0.0069118,94259.0,94226.0,0.28956052]
[1732137792640,0.0069118,94259.0,94257.0,0.106092]
[1732137792861,0.0069118,94259.0,94251.0,0.106099]
[1732137793099,0.0069118,94259.0,94233.0,0.10711512]
[1732137793100,0.001,94246.0,94237.0,0.123]
[1732137793355,0.001,94246.0,94245.0,0.129106]
[1732137793790,0.111092,94257.0,94251.0,0.212198]
[1732137793957,0.005,94257.0,94254.0,0.106095]
[1732137794375,0.005,94257.0,94256.0,0.106094]
[1732137794717,0.005,94257.0,94252.0,0.106097]
[1732137794854,0.005,94257.0,94254.0,0.106095]
[1732137795066,0.005,94257.0,94256.0,0.106093]
[1732137795330,0.0109118,94259.0,94258.0,0.106091]
[1732137795450,0.0109118,94259.0,94253.0,0.106096]
[1732137795676,0.0109118,94259.0,94249.0,0.106101]
[1732137795886,0.10711512,94258.0,94248.0,0.106102]
[1732137796142,0.0109118,94259.0,94243.0,0.00106102]
[1732137796143,0.0019118,94259.0,94243.0,0.00106102]
[1732137796406,0.10711512,94258.0,94246.0,0.1]
[1732137796611,0.106098,94252.0,94251.0,0.001]
[1732137796826,0.106098,94252.0,94251.0,0.107099]
[1732137796827,0.005,94252.0,94251.0,0.107099]
[1732137796957,0.0019118,94259.0,94256.0,0.106094]
[1732137796958,0.0069118,94259.0,94256.0,0.106094]
[1732137797177,0.0069118,94259.0,94230.0,0.00106096]
[1732137797178,0.005,94250.0,94230.0,0.106123]
[1732137797383,0.10711512,94249.0,94221.0,0.0008559]
[1732137797586,0.0019118,94259.0,94221.0,0.0008559]
[1732137797587,0.111132,94222.0,94221.0,0.0008559]
[1732137797789,0.005,94222.0,94221.0,0.0008559]
[1732137798322,0.106127,94227.0,94221.0,0.0008559]
[1732137798323,0.005,94227.0,94224.0,0.10613]
[1732137798513,0.005,94233.0,94222.0,0.106132]
[1732137798669,0.005,94233.0,94226.0,0.106127]
[1732137798876,0.005,94233.0,94227.0,0.106125]
[1732137799077,0.005,94233.0,94221.0,0.0008559]
[1732137799480,0.005,94227.0,94223.0,0.106131]
[1732137799663,0.005,94236.0,94221.0,0.0008559]
[1732137799894,0.005,94236.0,94235.0,0.106117]
[1732137800011,0.005,94236.0,94224.0,0.00106125]
[1732137800012,0.0773,94245.0,94224.0,0.00106125]
[1732137800208,0.0773,94245.0,94244.0,0.106107]
[1732137800209,0.0823,94245.0,94244.0,0.106107]
[1732137800466,0.005,94249.0,94248.0,0.106102]
[1732137800806,0.005,94249.0,94228.0,0.123]
[1732137801012,0.005,94245.0,94243.0,0.106107]
[1732137801219,0.005,94249.0,94243.0,0.106107]
[1732137801435,0.0769118,94259.0,94258.0,0.106091]
[1732137801684,0.0019118,94259.0,94258.0,0.106091]
[1732137801888,0.0019118,94259.0,94254.0,0.106095]
[1732137802186,0.0019118,94259.0,94221.0,0.0028559]
[1732137802187,0.10711512,94258.0,94244.0,0.106106]
[1732137802425,0.10711512,94258.0,94250.0,0.1061]
[1732137802621,0.10711512,94258.0,94228.0,0.16698194]
[1732137802622,0.10711512,94258.0,94251.0,0.106098]
[1732137802788,0.10711512,94258.0,94249.0,0.106101]
[1732137802789,0.21320712,94258.0,94249.0,0.106101]
[1732137802978,0.21320712,94258.0,94228.0,0.16698194]
[1732137802979,0.10711512,94258.0,94246.0,0.106104]
[1732137803136,0.10711512,94258.0,94228.0,0.123]
[1732137803335,0.212205,94249.0,94228.0,0.1]
[1732137803638,0.10711512,94258.0,94225.0,0.106128]
[1732137803639,0.10711512,94248.0,94225.0,0.106128]
[1732137803863,0.106118,94235.0,94226.0,0.106127]
[1732137804060,0.106118,94235.0,94221.0,0.0008559]
[1732137804061,0.0819,94241.0,94223.0,0.10613]
[1732137804263,0.10711512,94240.0,94221.0,0.0008559]
[1732137804495,0.10711512,94240.0,94222.0,0.106132]
[1732137804496,0.13652592,94240.0,94222.0,0.106132]
[1732137804717,0.13652592,94240.0,94221.0,0.0008559]
[1732137804932,0.13652592,94240.0,94222.0,0.0008561]
[1732137804933,0.106126,94228.0,94222.0,0.0008561]
[1732137805086,0.106131,94223.0,94222.0,0.0008561]
[1732137805295,0.10613,94224.0,94222.0,0.0008561]
[1732137805486,0.21324212,94227.0,94222.0,0.0008561]
[1732137805807,0.10711512,94227.0,94222.0,0.0008561]
[1732137806630,0.10711512,94227.0,94225.0,0.106128]
[1732137806833,0.188012,94241.0,94222.0,0.0008561]
[1732137806834,0.0819,94241.0,94222.0,0.0008561]
[1732137807137,0.14713842,94240.0,94224.0,0.106129]
[1732137807334,0.106114,94238.0,94222.0,0.1069881]
[1732137807512,0.10711512,94240.0,94222.0,0.1069881]
[1732137807513,0.14625833,94237.0,94222.0,0.1069881]
[1732137807717,0.14625833,94237.0,94223.0,0.10613]
[1732137807914,0.106123,94230.0,94222.0,0.0008561]
[1732137808116,0.0819,94241.0,94222.0,0.0008561]
[1732137808316,0.10711512,94240.0,94234.0,0.106118]
[1732137808541,0.0782122,94258.0,94235.0,0.00106118]
[1732137808802,0.10711512,94257.0,94244.0,0.106106]
[1732137808964,0.0782122,94258.0,94257.0,0.106092]
[1732137809161,0.0782122,94258.0,94226.0,0.106127]
[1732137809162,0.0782122,94258.0,94254.0,0.106095]
[1732137809361,0.0017122,94258.0,94257.0,0.106092]
[1732137810184,0.0017122,94258.0,94257.0,0.10715283]
[1732137810815,0.0017122,94258.0,94257.0,0.00106083]
[1732137811028,0.0017122,94258.0,94255.0,0.106094]
[1732137811306,0.0017122,94258.0,94251.0,0.1]
[1732137811736,0.0017122,94258.0,94255.0,0.106094]
[1732137812355,0.0017122,94258.0,94257.0,0.106092]
[1732137813131,0.0017122,94258.0,94257.0,0.10715294]
[1732137813721,0.0017122,94258.0,94257.0,0.229092]
[1732137816267,0.0017122,94258.0,94257.0,0.33620712]
[1732137816704,0.0017124,94272.0,94268.0,0.20608]
[1732137816961,0.0017124,94272.0,94268.0,0.33619512]
[1732137817182,8e-07,94269.0,94268.0,0.33619512]
[1732137818173,8e-07,94269.0,94268.0,0.34619512]
[1732137820152,8e-07,94269.0,94268.0,0.38957195]
[1732137820352,8e-07,94269.0,94268.0,0.34619512]
[1732137821671,8e-07,94269.0,94268.0,0.38965507]
[1732137821898,2e-07,94272.0,94271.0,0.52176101]
[1732137822104,2e-07,94272.0,94271.0,0.63087613]
[1732137822880,2e-07,94272.0,94271.0,0.64087613]
[1732137823099,2e-07,94272.0,94271.0,0.62887613]
[1732137823311,2e-07,94272.0,94271.0,0.34619212]
[1732137824185,2e-07,94272.0,94271.0,0.63887613]
[1732137824889,2e-07,94272.0,94271.0,0.46377374]
[1732137825117,2e-07,94272.0,94271.0,0.56985074]
[1732137825358,0.0002,94279.0,94278.0,0.118069]
[1732137825359,2e-07,94279.0,94278.0,0.118069]
[1732137825582,2e-07,94279.0,94278.0,0.22624448]
[1732137825818,0.0002,94299.0,94278.0,0.22624448]
[1732137825819,5e-07,94288.0,94285.0,0.01]
[1732137826103,5e-07,94288.0,94287.0,0.40874301]
[1732137826334,5e-07,94288.0,94287.0,0.51585813]
[1732137826750,5e-07,94288.0,94287.0,0.41752314]
[1732137827164,5e-07,94288.0,94287.0,0.54052314]
[1732137827864,5e-07,94288.0,94287.0,0.54252314]
[1732137828133,5e-07,94288.0,94287.0,0.55624146]
[1732137828560,5e-07,94288.0,94287.0,0.55424146]
[1732137828751,3e-07,94303.0,94301.0,0.01]
[1732137829016,3e-07,94303.0,94302.0,0.49750614]
[1732137829253,3e-07,94303.0,94302.0,0.51041765]
[1732137829740,3e-07,94303.0,94302.0,0.32606863]
[1732137829991,3e-07,94303.0,94302.0,0.21895351]
[1732137830711,7e-07,94305.0,94304.0,0.22904]
[1732137830952,7e-07,94305.0,94304.0,0.34987344]
[1732137831210,7e-07,94305.0,94304.0,0.31315512]
[1732137833419,7e-07,94305.0,94304.0,0.20604]
[1732137833650,7e-07,94305.0,94304.0,0.10604]
[1732137834132,7e-07,94305.0,94304.0,0.10710031]
[1732137834783,7e-07,94305.0,94304.0,0.10604]
[1732137836474,7e-07,94305.0,94304.0,0.49856446]
[1732137836726,7e-07,94305.0,94304.0,0.49750414]
[1732137837735,7e-07,94305.0,94304.0,0.52050414]
[1732137837970,7e-07,94305.0,94304.0,0.57420282]
[1732137838224,0.0017074,94320.0,94318.0,0.106024]
[1732137838460,0.0017074,94320.0,94318.0,0.31313912]
[1732137838917,0.0017074,94320.0,94318.0,0.33613912]
[1732137839528,0.0017074,94320.0,94318.0,0.206024]
[1732137840702,0.0017074,94320.0,94318.0,0.250013]
[1732137840914,0.0017074,94320.0,94318.0,0.206024]
[1732137841113,0.0017074,94320.0,94319.0,0.206023]
[1732137841337,0.0017074,94320.0,94319.0,0.31313812]
[1732137841713,0.0017074,94320.0,94319.0,0.206023]
[1732137842924,0.0017074,94320.0,94315.0,0.127232]
[1732137843309,0.0017074,94320.0,94317.0,0.106024]
[1732137843522,0.0017074,94320.0,94319.0,0.106023]
[1732137843730,0.0017074,94320.0,94282.0,0.01]
[1732137843731,0.0017074,94320.0,94317.0,0.106025]
[1732137843988,0.0017074,94320.0,94319.0,0.106023]
[1732137844274,0.0017074,94320.0,94286.0,0.127272]
[1732137844275,0.10882252,94320.0,94280.0,0.18434902]
[1732137844515,0.10882252,94320.0,94230.0,0.09410632]
[1732137844516,0.18434902,94311.0,94299.0,0.106044]
[1732137844775,0.18434902,94303.0,94271.0,0.001711]
[1732137845017,0.106046,94299.0,94283.0,0.106062]
[1732137845266,0.10711512,94298.0,94271.0,0.001711]
[1732137845517,0.02407079,94297.0,94287.0,0.106058]
[1732137845787,0.10711512,94296.0,94281.0,0.106065]
[1732137846042,0.10711512,94296.0,94276.0,0.127284]
[1732137846043,0.09191859,94295.0,94276.0,0.127284]
[1732137846284,0.09191859,94295.0,94283.0,0.106062]
[1732137846285,0.10711512,94294.0,94283.0,0.106062]
[1732137846633,0.106053,94293.0,94278.0,0.106068]
[1732137846830,0.10711512,94292.0,94271.0,0.001711]
[1732137847089,0.0471,94288.0,94271.0,0.001711]
[1732137847339,0.0758,94276.0,94271.0,0.001711]
[1732137847539,0.10711512,94275.0,94271.0,0.001711]
[1732137847746,0.0758,94276.0,94275.0,0.106072]
[1732137849993,0.02407079,94297.0,94271.0,0.001711]